Cogmind - Beta 17 @@@ ROGUE MODE // 2026.07.18 @ 02:03:38 Player: cptwinky Result: Destroyed by Y4-8YB(E) with KE Penetrator Performance ------------- Evolutions (3) 1500 Regions Visited (11) 2200 Robots Destroyed (195) 975 Value Destroyed (5217) 5217 Prototype IDs (44) 880 Alien Tech Used (0) 0 Bonus (12923) 12923 TOTAL SCORE: 23695 Bonus ------- High Alert Combat Kills 381 Prayed to X0-1V1 5000 Major X0-1V1 Interference 7400 Aligned with FarCom 300 Friendly Fire -158 Cogmind --------- Core Integrity 0/380 Matter 92/300 Energy 276/280 System Corruption 2% Temperature Cool (0) Movement Treading (280) Ox3 Location -7/Scraptown Parts ------- > --- POWER (1) -------- Heavy Ion Engine > --- PROPULSION (4) --- Improved Treads Armored Huge Wheel > --- UTILITY (4) ------ Huge Storage Unit Core Analyzer Improved Medium Armor Plating X0-1V1's Piety Tracker > --- WEAPON (7) ------- Precision Assault Rifle Precision Assault Rifle Rocket Launcher > --- INVENTORY (25) --- Enhanced Nuclear Core Improved Treads Armored Huge Wheel Cooling System High-capacity Matter Pod (200) Advanced Targeting Computer Transmission Jammer Improved Medium Armor Plating Improved Medium Armor Plating Medium Reactive Plating Improved Shield Generator Hacking Suite Precision Shock Rifle Precision Shock Rifle Firepult Precision Assault Rifle Precision Assault Rifle Precision Assault Rifle Gauss Cannon Improved Datajack CPS Tube (2) Powered Hammer Peak State ------------ > --- POWER ------------ Heavy Ion Engine > --- PROPULSION ------- Improved Treads Improved Treads Armored Huge Wheel > --- UTILITY ---------- Huge Storage Unit Core Analyzer Improved Medium Armor Plating X0-1V1's Piety Tracker > --- WEAPON ----------- Precision Assault Rifle Precision Assault Rifle Precision Assault Rifle Precision Assault Rifle > --- INVENTORY -------- Enhanced Nuclear Core Improved Treads Improved Treads Armored Huge Wheel Cooling System High-capacity Matter Pod Advanced Targeting Computer Transmission Jammer Improved Medium Armor Plating Medium Reactive Plating Improved Shield Generator Hacking Suite Precision Shock Rifle Precision Shock Rifle Firepult Precision Assault Rifle Precision Assault Rifle Gauss Cannon Rocket Launcher Rocket Launcher Improved Datajack Great Maul Powered Hammer [Rating: 67] Favorites ----------- Power Heavy Ion Engine Engine Heavy Ion Engine Power Core Enhanced Nuclear Core Propulsion Light Treads Treads Light Treads Wheel Armored Huge Wheel Utility X0-1V1's Piety Tracker Device X0-1V1's Piety Tracker Storage Huge Storage Unit Processor Core Analyzer Hackware Hacking Suite Protection Hardened Light Armor Plating Weapon Precision Assault Rifle Energy Gun Medium Laser Ballistic Gun Precision Assault Rifle Ballistic Cannon Light Cannon Launcher Rocket Launcher Impact Weapon Powered Hammer Special Melee Weapon Improved Datajack Build | -11 -10 -10 -9 -9 -9 -8 -8 -7 -7 -7 -7 ------- Run | Yrd Mat Min Mat Min Exi Min Mat Fac Sto Rec Scr Slots Evolved 6 | . . . 2 . . . 2 2 . . . Power . | . . . . . . . . . . . . Propulsion 2 | . . . 1 . . . . 1 . . . Utility 3 | . . . 1 . . . 1 1 . . . Weapon 1 | . . . . . . . 1 . . . . Parts Attached 80 | 7 8 . 15 3 1 4 6 17 17 2 . Power 7 | 1 1 . 2 . . . 1 2 . . . Engine 6 | 1 1 . 2 . . . 1 1 . . . Core 1 | . . . . . . . . 1 . . . Reactor . | . . . . . . . . . . . . Propulsion 19 | 2 . . 6 2 . . 1 3 3 2 . Treads 18 | 2 . . 6 2 . . 1 2 3 2 . Leg . | . . . . . . . . . . . . Wheel 1 | . . . . . . . . 1 . . . Hover . | . . . . . . . . . . . . Flight . | . . . . . . . . . . . . Utility 23 | 2 3 . 4 1 . . 2 7 4 . . Device 7 | 1 1 . . . . . 1 1 3 . . Storage 4 | 1 2 . 1 . . . . . . . . Processor 2 | . . . . . . . 1 1 . . . Hackware 1 | . . . . . . . . 1 . . . Protection 9 | . . . 3 1 . . . 4 1 . . Artifact . | . . . . . . . . . . . . Weapon 31 | 2 4 . 3 . 1 4 2 5 10 . . Energy Gun 4 | 1 1 . . . . . . . 2 . . Energy Cannon . | . . . . . . . . . . . . Ballistic Gun 12 | 1 . . . . . 2 2 1 6 . . Ballistic Cannon 8 | . 2 . 3 . . 1 . 1 1 . . Launcher 3 | . 1 . . . . 1 . . 1 . . Special Weapon . | . . . . . . . . . . . . Impact Weapon 2 | . . . . . . . . 2 . . . Slashing Weapon . | . . . . . . . . . . . . Piercing Weapon . | . . . . . . . . . . . . Special Melee Weapon 2 | . . . . . 1 . . 1 . . . Unidentified Prototypes 5 | . 1 . 1 . . . . 1 2 . . Parts Lost 11 | . . . 3 1 . . . 4 2 . 1 Power 1 | . . . . . . . . 1 . . . Propulsion 2 | . . . 2 . . . . . . . . Utility 2 | . . . . 1 . . . 1 . . . Weapon 6 | . . . 1 . . . . 2 2 . 1 Highest Loss Streak 3 | . . . 1 1 . . . 3 1 . 1 To Critical Strikes . | . . . . . . . . . . . . Average Backups 20 | 3 10 13 17 24 24 23 23 22 22 23 22 Power 1 | . 1 1 1 2 2 2 2 1 1 1 1 Propulsion 3 | 1 1 3 3 6 5 5 5 4 4 3 2 Utility 6 | . 2 4 4 6 7 7 8 9 7 8 8 Weapon 7 | . 4 5 8 9 9 8 6 6 8 9 9 Tool/Special . | . . . . . . . . . . . . Unused Backups 38 | . 7 . 3 1 1 . 4 2 4 1 15 Power 3 | . . . . . 1 . . 1 . . 1 Propulsion 7 | . 3 . 1 . . . . . 1 . 2 Utility 15 | . 1 . 1 . . . 3 1 1 . 8 Weapon 12 | . 3 . 1 1 . . 1 . 2 1 3 Tool/Special 1 | . . . . . . . . . . . 1 Average Slot Usage (%) 94 | . 100 100 99 99 88 99 98 88 89 90 91 Engine 9 | . 14 14 11 11 11 11 9 5 7 7 6 Treads 25 | . 28 28 32 33 33 33 26 23 15 15 14 Wheel 2 | . . . . . . . . 3 7 7 6 Device 8 | . 4 14 11 11 11 11 10 4 7 7 6 Storage 9 | . 14 14 11 11 11 11 9 7 7 7 6 Processor 4 | . . . . . . . 7 12 7 7 6 Protection 8 | . 9 . 10 10 11 11 9 7 7 7 6 Energy Gun 1 | . 8 . . . . . . . 3 . . Ballistic Gun 11 | . 8 . . . . 10 25 16 21 26 14 Ballistic Cannon 8 | . 11 27 21 22 . 7 . 3 2 . . Impact Weapon 1 | . . . . . . . . . . . 6 Special Melee Weapon 1 | . . . . . 10 . . . . . 6 Peak Build Rating 67 | 7 20 20 29 29 29 32 39 55 66 67 67 Average Rating 37 | 5 10 20 25 28 28 31 38 43 54 64 63 On Entrance 30 | . 7 20 20 29 29 29 32 39 44 66 54 Avg Prop Armor Cover (%) 11 | . . . . . . . . 11 10 10 12 Naked Turns . | . . . . . . . . . . . . Heaviest Build 121 | 15 33 32 103 101 95 101 105 114 121 112 111 Greatest Support 86 | 40 40 40 60 60 60 60 60 86 34 34 34 Greatest Overweight (x) 3 | . . . 1 1 1 1 2 3 3 3 3 Average Overweight (x) 1 | . . . . 1 1 1 1 2 3 2 2 Largest Inventory Capacity 25 | 8 15 15 25 25 25 25 25 25 25 25 25 Average Capacity 22 | 6 11 15 18 25 25 25 25 25 25 25 25 Most Carried 25 | 6 13 13 25 25 25 25 25 25 25 25 25 Average Carried 21 | 3 10 13 17 24 24 24 24 24 24 24 24 Final Capacity 25 | 8 15 15 25 25 25 25 25 25 25 25 25 Final Carried 25 | 6 13 13 25 25 25 24 25 25 25 25 24 Class Distribution -------------------- 56% | Mutant 18% | Skirmisher 8% | Scavenger-Mutant 6% | Scavenger-Skirmisher 6% | Tank Dominant Class ---------------- Mutant | -10/Materials Mutant | -10/Mines Mutant | -9/Materials Mutant | -9/Mines Scavenger-Mutant | -9/Exiles Mutant | -8/Mines Skirmisher | -8/Materials Scavenger-Skirmisher | -7/Factory Tank | -7/Storage Skirmisher | -7/Recycling Mutant | -7/Scraptown Resources | -11 -10 -10 -9 -9 -9 -8 -8 -7 -7 -7 -7 ----------- Run | Yrd Mat Min Mat Min Exi Min Mat Fac Sto Rec Scr Matter Collected 5459 | 282 347 163 853 325 200 39 404 718 1616 314 198 Remotely . | . . . . . . . . . . . . Salvage Created 6189 | 112 393 141 842 205 . 205 316 1032 2104 209 630 Parts 385 | 6 27 14 68 13 . 20 28 60 104 15 30 Haulers Intercepted 11 | . 2 . 4 . . . . 1 4 . . Recyclers Shooed 8 | . 1 1 4 . . 1 1 . . . . Parts Field Recycled . | . . . . . . . . . . . . Retrieved Matter . | . . . . . . . . . . . . Parts Self-Destructed . | . . . . . . . . . . . . Prevented . | . . . . . . . . . . . . Parts Restored . | . . . . . . . . . . . . Kills | -11 -10 -10 -9 -9 -9 -8 -8 -7 -7 -7 -7 ------- Run | Yrd Mat Min Mat Min Exi Min Mat Fac Sto Rec Scr Combat Hostiles Destroyed 129 | . 13 5 27 7 . 9 4 19 32 2 11 Melee 1 | . . . . . . . . 1 . . . Guns 41 | . 5 . . . . . 4 13 13 2 4 Cannons 41 | . 5 3 17 7 . . . 5 4 . . AOE 46 | . 3 2 10 . . 9 . . 15 . 7 Classes Destroyed 22 | 2 7 . 1 2 . . . 2 1 . 7 Worker 12 | . 1 . 3 1 . . . . 6 . 1 Builder 3 | . 1 . 1 . . . 1 . . . . Tunneler 5 | 1 . . . 1 . 2 . 1 . . . Hauler 11 | . 2 . 4 . . . . 1 4 . . Recycler 17 | 1 1 1 4 . . 1 1 2 5 1 . Mechanic 2 | . . . . . . . . 1 1 . . Operator 8 | . 2 . 2 . . . 2 1 1 . . Watcher 6 | . 2 . 3 . . . . . 1 . . Swarmer 34 | . 9 3 12 . . 6 . . 4 . . Grunt 49 | . 4 2 8 5 . 4 . 10 15 . 1 Brawler 1 | . . . . 1 . . . . . . . Duelist 2 | . . . . 1 . . . . 1 . . Sentry 26 | . . . 7 . . . 4 5 8 2 . Specialist 3 | . . . . . . . . . 3 . . Programmer 5 | . . . . . . . . 4 1 . . Bolteater 5 | . . . . . . . . . . . 5 Federalist 1 | . . . . . . . . . . . 1 Explorer 1 | . . . . . . . . . . . 1 Guru 1 | . . . . . . . . . . . 1 Scientist 1 | . . . . . . . . . . . 1 Scrapper 2 | . . . . . . . . . . . 2 Elite 1 | . . . . . . . . . . . 1 Best Kill Streak 20 | 2 5 4 9 3 . 9 2 4 20 2 13 Combat Bots Only 11 | . 4 3 6 3 . 4 2 3 11 1 11 Max Kills in Single Turn 4 | 1 3 2 3 2 . 3 1 1 3 1 4 Gunslinging . | . . . . . . . . . . . . Exploded 3 | . 3 2 3 . . 3 . . 3 . 3 Melee 1 | . . . . . . . . 1 . . . Uniques/NPCs Destroyed . | . . . . . . . . . . . . Combat | -11 -10 -10 -9 -9 -9 -8 -8 -7 -7 -7 -7 -------- Run | Yrd Mat Min Mat Min Exi Min Mat Fac Sto Rec Scr Hostile Shots Fired 740 | . 62 9 122 28 . 7 14 143 252 36 67 Missed 262 | . 16 6 41 4 . 2 3 49 105 19 17 Hits 478 | . 46 3 81 24 . 5 11 94 147 17 50 Melee 27 | . . . . 4 . . . . . . 23 Projectile 451 | . 46 3 81 20 . 5 11 94 147 17 27 Critical Strikes 6 | . . . 1 1 . . . 4 . . . Part Disruptions 1 | . . . . . . . . . . . 1 Damage Taken 5080 | . 440 27 969 305 . 92 164 1293 1068 94 628 Core 637 | . 48 13 118 . . 9 14 154 114 16 151 Absorbed by Shields 344 | . . . . . . . . . 344 . . Regen/Repaired (Parts) 275 | . . . 275 . . . . . . . . Core Remaining (%) 91 | 100 . 75 . . . 96 96 . . . . Volleys Fired 325 | 4 52 6 96 16 . 7 10 53 62 6 13 Largest 4 | 2 2 2 2 2 . 1 3 3 4 4 4 Hottest 166 | 70 70 60 63 63 . 33 69 98 166 112 117 Shots Fired 739 | 8 103 11 186 32 . 8 30 136 171 19 35 Gun 390 | 8 58 . . . . . 30 107 141 19 27 Cannon 312 | . 44 10 180 32 . . . 29 17 . . Launcher 37 | . 1 1 6 . . 8 . . 13 . 8 Special . | . . . . . . . . . . . . Kinetic 661 | 4 73 10 180 32 . . 30 136 150 19 27 Thermal 33 | 4 29 . . . . . . . . . . Explosive 37 | . 1 1 6 . . 8 . . 13 . 8 Electromagnetic 8 | . . . . . . . . . 8 . . Robot Hit Streak 29 | 2 8 6 19 12 . 5 20 29 19 17 18 Robot Miss Streak 4 | 1 3 1 4 3 . 1 . 2 2 1 1 Penetration Max 1 | . . . . . . . . 1 . . . Secondary Targets 7 | . . . . . . . . 3 . . 4 Max Gunslinging Chain 1 | . . . . . . . . 1 . . 1 Shots Hit Robots 500 | 4 60 7 117 21 4 2 20 106 107 16 36 Core Hits 307 | 2 26 6 55 9 . 18 12 45 94 6 34 Critical Kills 3 | . 1 . . . . . . 1 1 . . Critical Parts Destroyed 2 | . . . . . . . . 1 1 . . Critical Strikes 15 | . 4 . 5 1 . . . 3 2 . . Burn 2 | . 2 . . . . . . . . . . Destroy 5 | . 1 . . . . . . 2 2 . . Blast 8 | . 1 . 5 1 . . . 1 . . . Melee Attacks 20 | . . . . . 4 . . 11 1 . 4 Impact 13 | . . . . . . . . 11 1 . 1 Slashing . | . . . . . . . . . . . . Piercing . | . . . . . . . . . . . . Sneak Attacks 8 | . . . . . 4 . . 1 . . 3 Combat Hostiles 1 | . . . . . . . . 1 . . . Follow-up Attacks . | . . . . . . . . . . . . Damage Inflicted 14644 | 55 1059 244 3001 461 . 933 344 2823 3736 332 1656 Guns 4561 | 55 407 . . . . . 323 1216 1850 332 378 Cannons 4869 | . 503 123 2178 433 . . . 1277 355 . . Explosions 4666 | . 128 97 713 . . 919 . . 1531 . 1278 Melee 303 | . . . . . . . . 303 . . . Ramming 245 | . 21 24 110 28 . 14 21 27 . . . Kinetic 9149 | 29 726 123 2178 433 . . 323 2493 2134 332 378 Thermal 210 | 26 184 . . . . . . . . . . Explosive 4666 | . 128 97 713 . . 919 . . 1531 . 1278 Electromagnetic 71 | . . . . . . . . . 71 . . Impact 303 | . . . . . . . . 303 . . . Slashing . | . . . . . . . . . . . . Piercing . | . . . . . . . . . . . . Highest Corruption 34 | . . . . 13 13 13 4 34 34 34 2 Average Corruption 20 | . . . . 13 13 13 4 24 34 34 1 Corruption Purged . | . . . . . . . . . . . . Corruption Blocked . | . . . . . . . . . . . . Effects 138 | . . . . 3 19 12 11 7 69 17 . Message Errors 32 | . . . . . 4 3 3 . 20 2 . Matter Fused 39 | . . . . 1 11 3 2 1 16 5 . Heat Flow Errors 9 | . . . . 1 1 . 1 . 6 . . Energy Discharges 15 | . . . . . 2 2 2 5 2 2 . Parts Rejected 2 | . . . . . . . . . . 2 . Parts Fused 1 | . . . . 1 . . . . . . . Data Loss (minor) 11 | . . . . . 1 2 2 . 5 1 . Data Loss (major) 2 | . . . . . . . 1 . 1 . . Misfires 6 | . . . . . . 1 . 1 4 . . Alerts 3 | . . . . . . 1 . . 2 . . Weapon Failures 18 | . . . . . . . . . 13 5 . Overload Shots . | . . . . . . . . . . . . Overflow Damage 391 | . . . 53 5 . 33 . 130 53 . 117 Projectiles 154 | . . . 27 . . . . 127 . . . Explosions 229 | . . . 26 . . 33 . . 53 . 117 Melee 8 | . . . . 5 . . . 3 . . . Knockbacks 17 | . 4 1 7 1 . . . 4 . . . Impact 2 | . . . 1 1 . . . . . . . Kinetic 15 | . 4 1 6 . . . . 4 . . . Secondary . | . . . . . . . . . . . . Self-Inflicted Damage 148 | . . 8 . . . 29 . . 17 . 94 Shots 6 | . . 1 . . . 1 . . 1 . 3 Rammed 29 | . 5 4 13 1 . 1 2 3 . . . Targets Rammed 39 | . 7 5 17 2 . 2 2 4 . . . Kicked . | . . . . . . . . . . . . Crushed 10 | . 2 1 4 1 . 1 . 1 . . . Highest Temperature 317 | 18 81 . 72 113 182 16 182 91 317 46 113 Average Temperature 38 | 10 23 . 16 51 97 7 41 25 70 20 41 Received Heat Transfer 1443 | . 48 . 321 120 . 18 54 447 387 . 48 Siege Activations . | . . . . . . . . . . . . Martial Activations . | . . . . . . . . . . . . Shielding Activations . | . . . . . . . . . . . . Robots Disrupted . | . . . . . . . . . . . . Combat Hostiles . | . . . . . . . . . . . . Robots Corrupted 1 | . . . . 1 . . . . . . . Combat Hostiles . | . . . . . . . . . . . . Parts Fried 1 | . . . . 1 . . . . . . . Impact Corruptions 2 | . . . . 1 . . . 1 . . . Robots Melted . | . . . . . . . . . . . . Combat Hostiles . | . . . . . . . . . . . . Parts Melted 3 | . 1 . . . . . . . . . 2 Heat Transferred 777 | 74 703 . . . . . . . . . . Parts Sabotaged . | . . . . . . . . . . . . Parts Stolen 2 | . . . . . . . . . . . 2 Parts Stripped . | . . . . . . . . . . . . Power Chain Reactions . | . . . . . . . . . . . . Alert | -11 -10 -10 -9 -9 -9 -8 -8 -7 -7 -7 -7 ------- Run | Yrd Mat Min Mat Min Exi Min Mat Fac Sto Rec Scr Maximum Alert Level 3 | . . . 1 1 . 1 . . 3 1 . Low Security (%) 70 | 100 100 100 25 94 . 93 100 100 5 . . Level 1 22 | . . . 74 5 . 6 . . 40 100 . Level 2 1 | . . . . . . . . . 13 . . Level 3 5 | . . . . . . . . . 40 . . Level 4 . | . . . . . . . . . . . . Level 5 . | . . . . . . . . . . . . High Security . | . . . . . . . . . . . . Max Security . | . . . . . . . . . . . . Peak Influence 911 | 5 171 145 363 222 . 260 97 122 911 342 . Initial 337 | . . 31 1 129 . . 97 . 53 337 . Average 152 | . 65 80 225 69 . 40 17 44 553 308 . Influence Increases 3994 | 10 446 134 809 232 . 315 147 568 1268 45 20 Destroy 0b10 Robot/C 2360 | . 260 100 540 140 . 180 80 380 640 40 . Destroy 0b10 Robot/NC 335 | 10 45 5 85 10 . 15 20 30 90 5 20 Destroy Leader 564 | . 68 20 114 30 . 30 40 102 160 . . Allied During Kill 27 | . . . . 7 . 18 2 . . . . Successful Hack 85 | . 30 . 9 . . . 5 18 23 . . Disable Machine 150 | . 30 . . 30 . . . 15 75 . . Anti-Garrison Action 200 | . . . . . . . . . 200 . . Destroy Structure 198 | . 13 9 46 . . 42 . 8 80 . . Partial Spotted 15 | . . . . . . . . 15 . . . Lose Combat Pursuer 60 | . . . 15 15 . 30 . . . . . Influence Decreases 3988 | 10 365 210 481 565 . 65 397 450 519 650 276 Entered New Map 1268 | . . 50 4 204 . . 153 . 65 530 262 Time Decay 2590 | 10 365 160 457 351 . 45 224 420 434 120 4 Lost Part 90 | . . . 20 10 . . . 30 20 . 10 Lost Ally 40 | . . . . . . 20 20 . . . . Squads Dispatched 25 | . 3 . 2 3 . . 4 8 5 . . Investigation 7 | . . . 1 2 . . . 2 2 . . Extermination 4 | . . . . . . . . 3 1 . . Reinforcement 9 | . 3 . 1 . . . 3 1 1 . . Assault 4 | . . . . 1 . . . 2 1 . . Garrison 1 | . . . . . . . 1 . . . . Intercept . | . . . . . . . . . . . . Searches Triggered . | . . . . . . . . . . . . Construction Impeded . | . . . . . . . . . . . . Haulers Reinforced . | . . . . . . . . . . . . Active Scanning Responses . | . . . . . . . . . . . . Cargo Convoy Interrupts . | . . . . . . . . . . . . Stealth | -11 -10 -10 -9 -9 -9 -8 -8 -7 -7 -7 -7 --------- Run | Yrd Mat Min Mat Min Exi Min Mat Fac Sto Rec Scr Distress Signals 12 | . 1 . 4 . . . 3 . 4 . . Communications Jammed 11 | . . . . . . . . . 11 . . Distress Signals 11 | . . . . . . . . . 11 . . Times Spotted 176 | . 24 4 40 9 . 8 6 24 41 1 19 Peak Tracking Total 12 | . 5 3 5 3 . 3 3 3 6 1 12 Tactical Retreats 4 | . . . 1 1 . 2 . . . . . Traps | -11 -10 -10 -9 -9 -9 -8 -8 -7 -7 -7 -7 ------- Run | Yrd Mat Min Mat Min Exi Min Mat Fac Sto Rec Scr Traps Triggered 7 | . 1 . . . . . 2 1 3 . . Indirectly . | . . . . . . . . . . . . Trap Hack Attempts 2 | . . . . . . . . 2 . . . Triggered . | . . . . . . . . . . . . Disarmed 1 | . . . . . . . . 1 . . . Reprogrammed . | . . . . . . . . . . . . Reused . | . . . . . . . . . . . . Traps Extracted . | . . . . . . . . . . . . Installed . | . . . . . . . . . . . . Triggered . | . . . . . . . . . . . . Machines | -11 -10 -10 -9 -9 -9 -8 -8 -7 -7 -7 -7 ---------- Run | Yrd Mat Min Mat Min Exi Min Mat Fac Sto Rec Scr Machines Disabled 14 | . 3 . 1 2 . . . 1 5 . 2 Max in Single Turn 1 | . 1 . 1 1 . . . 1 1 . 1 Garrison Access 2 | . . . . . . . . 1 1 . . Machines Repaired . | . . . . . . . . . . . . Machines Dismantled . | . . . . . . . . . . . . Machines Sabotaged . | . . . . . . . . . . . . Overloaded Fab Kills . | . . . . . . . . . . . . Hacking | -11 -10 -10 -9 -9 -9 -8 -8 -7 -7 -7 -7 --------- Run | Yrd Mat Min Mat Min Exi Min Mat Fac Sto Rec Scr Machines Accessed 38 | . 5 . 5 . 2 . 5 7 13 1 . Terminals 22 | . 4 . 3 . . . 2 3 9 1 . Fabricators 2 | . . . . . . . . 2 . . . Repair Stations 7 | . 1 . 1 . . . 2 1 2 . . Recycling Units 1 | . . . . . . . . . 1 . . Scanalyzers 3 | . . . 1 . . . 1 1 . . . Garrison Access 1 | . . . . . . . . . 1 . . Total Hacks 79 | . 9 . 20 . 2 . 11 15 21 1 . Successful 31 | . 4 . 15 . 2 . 3 2 5 . . Failed 46 | . 5 . 5 . . . 7 12 16 1 . Catastrophic 9 | . . . . . . . . 3 5 1 . Database Lockouts 2 | . . . . . . . 1 1 . . . Manual 42 | . 9 . 5 . 1 . 5 11 10 1 . Terminals 41 | . 8 . 5 . . . 7 6 14 1 . Fabricators 4 | . . . . . . . . 4 . . . Repair Stations 17 | . 1 . 7 . . . 3 3 3 . . Recycling Units 1 | . . . . . . . . . 1 . . Scanalyzers 11 | . . . 8 . . . 1 2 . . . Garrison Access 3 | . . . . . . . . . 3 . . Terminal Hacks 10 | . 2 . 2 . 2 . . . 4 . . Record 1 | . . . . . 1 . . . . . . Robot Analysis 3 | . 2 . 1 . . . . . . . . Open Door 3 | . . . . . . . . . 3 . . Locate Traps 1 | . . . 1 . . . . . . . . Zone Layout 1 | . . . . . . . . . 1 . . Proto ID Catalog 1 | . . . . . 1 . . . . . . Fabricator Hacks . | . . . . . . . . . . . . Repair Station Hacks 8 | . 1 . 6 . . . 1 . . . . Scan Component 4 | . . . 3 . . . 1 . . . . Repair 3 | . . . 3 . . . . . . . . Refit 1 | . 1 . . . . . . . . . . Recycling Unit Hacks . | . . . . . . . . . . . . Scanalyzer 8 | . . . 6 . . . 1 1 . . . Retrieve Study 8 | . . . 6 . . . 1 1 . . . Garrison Access Hacks . | . . . . . . . . . . . . Unauthorized Hacks 5 | . 1 . 1 . . . 1 1 1 . . Terminals 4 | . 1 . 1 . . . 1 1 . . . Botnet 4 | . 1 . 1 . . . 1 1 . . . Fabricators . | . . . . . . . . . . . . Repair Stations . | . . . . . . . . . . . . Recycling Units . | . . . . . . . . . . . . Scanalyzers . | . . . . . . . . . . . . Garrison Access 1 | . . . . . . . . . 1 . . Jam 1 | . . . . . . . . . 1 . . Data Cores Recovered 3 | . . . 1 . . . 1 . 1 . . Used 1 | . . . . . . . . . 1 . . Hacking Detections 34 | . 5 . 4 . . . 4 7 13 1 . Full Trace Events 4 | . . . 2 . . . 1 1 . . . Feedback Events . | . . . . . . . . . . . . Feedback Blocked . | . . . . . . . . . . . . Robot Schematics Acquired . | . . . . . . . . . . . . Robots Built . | . . . . . . . . . . . . Authchips . | . . . . . . . . . . . . Time . | . . . . . . . . . . . . Total Robot Build Rating . | . . . . . . . . . . . . Part Schematics Acquired 1 | . . . . . . . . . . . 1 Parts Built . | . . . . . . . . . . . . Authchips . | . . . . . . . . . . . . Time . | . . . . . . . . . . . . Total Part Build Rating . | . . . . . . . . . . . . Part Studies Acquired 8 | . . . 6 . . . 1 1 . . . Parts Repaired 3 | . . . 3 . . . . . . . . Time 78 | . . . 78 . . . . . . . . Parts Recycled . | . . . . . . . . . . . . Recycled Matter . | . . . . . . . . . . . . Retrieved Matter . | . . . . . . . . . . . . Retrieved Components . | . . . . . . . . . . . . Parts Scanalyzed . | . . . . . . . . . . . . Part Schematics Acquired . | . . . . . . . . . . . . Parts Damaged . | . . . . . . . . . . . . Bothacking | -11 -10 -10 -9 -9 -9 -8 -8 -7 -7 -7 -7 ------------ Run | Yrd Mat Min Mat Min Exi Min Mat Fac Sto Rec Scr Used RIF Installer . | . . . . . . . . . . . . Robots Hacked 7 | . . . . . 4 . . . . . 3 Non-combat 4 | . . . . . 3 . . . . . 1 Combat 3 | . . . . . 1 . . . . . 2 Robot Hacks Applied 7 | . . . . . 4 . . . . . 3 parse_system 7 | . . . . . 4 . . . . . 3 Relay Couplers Released 1 | . . . . . . . . 1 . . . Machine Destruction 1 | . . . . . . . . 1 . . . Fabnet Peak Effective % . | . . . . . . . . . . . . Robots Rewired 2 | . . . . 2 . . . . . . . Allies Hacked . | . . . . . . . . . . . . Hacks Repelled . | . . . . . . . . . . . . Allies | -11 -10 -10 -9 -9 -9 -8 -8 -7 -7 -7 -7 -------- Run | Yrd Mat Min Mat Min Exi Min Mat Fac Sto Rec Scr Total Allies 6 | . . . . 3 . . . . . . 3 Largest Group 3 | . . . . 3 3 3 1 . . . 2 Highest-Rated Group 40 | . . . . 40 40 40 16 . . . 32 Highest-Rated Ally 16 | . . . . 16 16 16 16 . . . 16 Total Orders 2 | . . . . 2 . . . . . . . STAY 1 | . . . . 1 . . . . . . . FOLLOW 1 | . . . . 1 . . . . . . . Ally Attacks 35 | . . . . 5 . 15 3 . . . 12 Total Damage 313 | . . . . 64 . 81 35 . . . 133 Kills 1 | . . . . . . . . . . . 1 Allies Corrupted . | . . . . . . . . . . . . Allies Melted . | . . . . . . . . . . . . X0-1V1 Amusement Gains 188 | . 12 20 . . . . 10 10 40 . 96 Good Acts 20 | . 1 2 1 1 . 1 . 5 3 3 3 Bad Acts 38 | . . 1 7 7 . . 5 9 8 . 1 Intel | -11 -10 -10 -9 -9 -9 -8 -8 -7 -7 -7 -7 ------- Run | Yrd Mat Min Mat Min Exi Min Mat Fac Sto Rec Scr Active Infowar (turns) 605 | 30 278 . . . . . . . 297 . . Seismic 308 | 30 278 . . . . . . . . . . Jamming 297 | . . . . . . . . . 297 . . Robot Analysis Total 3 | . 2 . 1 . . . . . . . . Derelict Logs Recovered 2 | . . 2 . . . . . . . . . Drone Launches . | . . . . . . . . . . . . Drone Recoveries . | . . . . . . . . . . . . Exploration | -11 -10 -10 -9 -9 -9 -8 -8 -7 -7 -7 -7 ------------- Run | Yrd Mat Min Mat Min Exi Min Mat Fac Sto Rec Scr Turns Passed 10660 | 118 1187 325 1565 1158 583 305 958 1580 1060 247 1574 Spaces Moved 5099 | 58 598 171 583 542 286 136 404 745 533 156 887 Core 4 | 4 . . . . . . . . . . . Treads 3129 | 54 598 171 583 542 286 136 404 355 . . . Legs . | . . . . . . . . . . . . Wheels 1966 | . . . . . . . . 390 533 156 887 Hover . | . . . . . . . . . . . . Flight . | . . . . . . . . . . . . Fastest Speed 50 | 50 160 160 160 200 200 200 200 135 135 120 120 Average Speed 167 | 152 160 160 185 200 200 200 200 170 135 132 134 Slowest Speed 240 | 160 160 160 240 200 200 200 240 200 135 135 135 Overloaded Moves . | . . . . . . . . . . . . Propulsion Burnouts . | . . . . . . . . . . . . Robots Hopped . | . . . . . . . . . . . . Potential Cave-ins 2 | . . . . 2 . . . . . . . Cave-ins Triggered . | . . . . . . . . . . . . Exploration Rate (%) 53 | 5 94 30 55 94 69 44 38 25 91 43 53 Regions Visited 11 Branch Regions 7 Pre-discovered Areas 3 | . . 2 . . 1 . . . . . . Known Exits Taken 2 | . . . . . . 1 . 1 . . . Unknown Exits Taken 9 | 1 1 1 1 1 1 . 1 . 1 1 . Scrap Searched 5 | . . . . 2 . . . . . . 3 Spaces Dug 3 | . . . . . . . . . 3 . . Terrain Destroyed 233 | . 11 9 43 . . 52 . 6 89 . 23 Melee 1 | . . . . . . . . . 1 . . Projectile 14 | . . . . . . . . 6 8 . . AOE 218 | . 11 9 43 . . 52 . . 80 . 23 Terrain Rammed . | . . . . . . . . . . . . Walls Destroyed . | . . . . . . . . . . . . Machines Disabled . | . . . . . . . . . . . . Actions | -11 -10 -10 -9 -9 -9 -8 -8 -7 -7 -7 -7 --------- Run | Yrd Mat Min Mat Min Exi Min Mat Fac Sto Rec Scr Total 6533 | 77 725 208 867 584 297 159 539 926 734 179 1238 Wait 718 | 2 30 25 114 1 . 11 94 53 58 5 325 Move 5088 | 57 597 170 582 541 285 135 403 744 532 155 887 Hop . | . . . . . . . . . . . . Pick Up 83 | 7 15 . 25 3 2 . 9 14 5 1 2 Fast Attach 31 | 6 2 . 3 . . . 6 6 6 2 . Attach 23 | 1 . . 7 1 . 1 2 6 2 . 3 Detach 12 | . 1 . . . 1 . 1 4 3 2 . Swap 82 | . 7 2 12 2 2 3 3 13 28 6 4 Drop 72 | . 14 . 11 4 3 . 9 16 13 2 . Fire 325 | 4 52 6 96 16 . 7 10 53 62 6 13 Melee 20 | . . . . . 4 . . 11 1 . 4 Ram . | . . . . . . . . . . . . Kick . | . . . . . . . . . . . . Crush 39 | . 7 5 17 2 . 2 2 4 . . . Escape Stasis 24 | . . . . . . . . . 24 . . Rewire 14 | . . . . 14 . . . . . . . Trap 2 | . . . . . . . . 2 . . . Miscellaneous . | . . . . . . . . . . . . Route ------- -11/Scrapyard -10/Materials (discovered 5 exits: *Mat x3 / [*Min] / [*Sub]) -10/Mines -9/Materials -9/Mines (discovered 3 exits: *Mat x2 / *Exi) -9/Exiles -8/Mines -8/Materials -7/Factory (discovered 2 exits: *Sto / *Low) -7/Storage (discovered 2 exits: [*Fac] / *Rec) -7/Recycling -7/Scraptown (discovered 1 exit: [*Fac]) History --------- Turn | Location | Event 98 | -11/Scrapyard | Discovered new exit (range 14) 119 | -11/Scrapyard | Entered Materials 308 | -10/Materials | Build established: Mutant 540 | -10/Materials | Discovered new exit (range 16) 699 | -10/Materials | Discovered new exit (range 16) 779 | -10/Materials | Discovered new exit (range 16) 1051 | -10/Materials | Discovered new exit (range 7) 1202 | -10/Materials | Discovered new exit (range 9) 1215 | -10/Materials | Prayed at D.C.S.S. Altar Unit 1277 | -10/Materials | X0-1V1 foreshadows a heat wave 1306 | -10/Materials | Entered Mines 1316 | -10/Mines | Met a Derelict bent on vengeance 1374 | -10/Mines | Discovered new exit (range 11) 1464 | -10/Mines | Learned location of Storage (-7) 1565 | -10/Mines | Assembled infested the area 1631 | -10/Mines | Entered Materials 1631 | -9/Materials | Evolved 2 slots: Propulsion x1, Utility x1 1836 | -9/Materials | X0-1V1 sent you into danger 2046 | -9/Materials | X0-1V1 sent you into danger 2095 | -9/Materials | Discovered new exit (range 8) 2264 | -9/Materials | Repaired Lgt. Treads 2291 | -9/Materials | Repaired Lgt. Treads 2318 | -9/Materials | Repaired Lgt. Cannon 2854 | -9/Materials | Ranged accuracy permanently improved by X0-1V1 (+7%; -70 max core) 3078 | -9/Materials | X0-1V1 announced a LAN party 3080 | -9/Materials | X0-1V1 sent hostile S-10 Pest (x4) 3196 | -9/Materials | Entered Mines 3225 | -9/Mines | Assisted by bots powering up and referring to "LRC-V3" 3231 | -9/Mines | Discovered new exit (range 13) 3329 | -9/Mines | Identified exit to Materials 3329 | -9/Mines | X0-1V1 revealed exit location to -8/Materials 3399 | -9/Mines | Joined a pair of Derelicts in attacking an 0b10 outpost 3466 | -9/Mines | Found a hidden stash of uninstalled traps 3588 | -9/Mines | Deemed a non-threat by the Exiles lab entrance 4222 | -9/Mines | X0-1V1 vaporized surrounding terrain (radius 21) 4281 | -9/Mines | System corruption reached 10% 4344 | -9/Mines | Discovered new exit (range 5) 4354 | -9/Mines | Entered Exiles 4354 | -9/Exiles | Accompanied by 3 allies 4406 | -9/Exiles | Met 8R-AWN 4441 | -9/Exiles | Met EX-HEX 4551 | -9/Exiles | Met EX-DEC 4610 | -9/Exiles | Learned location of Zion (-6) 4646 | -9/Exiles | Met EX-BIN 4648 | -9/Exiles | Build established: Scavenger-Mutant 4676 | -9/Exiles | Aligned with FarCom system 4678 | -9/Exiles | Given EX-Vault access code 4724 | -9/Exiles | Opened EX-Vault 4743 | -9/Exiles | Found Firepult 4785 | -9/Exiles | Warned to stay clear of 0b10 Research branches 4917 | -9/Exiles | Discovered new exit (range 11) 4937 | -9/Exiles | Left Exiles lab with Firepult 4937 | -9/Exiles | Entered Mines 4937 | -8/Mines | Accompanied by 3 allies 5108 | -8/Mines | Melee accuracy permanently improved by X0-1V1 (+5%; -50 max core) 5189 | -8/Mines | Discovered exit to Materials (range 9) 5234 | -8/Mines | Build established: Mutant 5242 | -8/Mines | Entered Materials 5242 | -8/Materials | Accompanied by 1 ally 5242 | -8/Materials | Evolved 2 slots: Utility x1, Weapon x1 5356 | -8/Materials | X0-1V1 redirected Transport squads to designated parking area 5650 | -8/Materials | Build established: Skirmisher 5785 | -8/Materials | Central database locked down 5849 | -8/Materials | Discovered new exit (range 3) 5865 | -8/Materials | X0-1V1 announced a LAN party 6116 | -8/Materials | Garrison activated, responded to threat 6200 | -8/Materials | Entered Factory 6200 | -7/Factory | Evolved 2 slots: Propulsion x1, Utility x1 6479 | -7/Factory | Discovered new exit (range 11) 6503 | -7/Factory | Build established: Scavenger-Skirmisher 6569 | -7/Factory | X0-1V1 downgraded hostiles (x1) 6574 | -7/Factory | X0-1V1 sent you into danger 6601 | -7/Factory | Lost 3 parts (1p1u1w) 6684 | -7/Factory | Identified exit to Lower Caves 7002 | -7/Factory | Mass support permanently improved by X0-1V1 (+6; -200 max core) 7358 | -7/Factory | X0-1V1 sent hostile Y-45 Defender (x1) 7408 | -7/Factory | X0-1V1 mutated your Utility slot to Weapon slot 7432 | -7/Factory | Build established: Skirmisher 7627 | -7/Factory | System corruption reached 10% 7710 | -7/Factory | Discovered new exit (range 13) 7717 | -7/Factory | System corruption reached 30% 7728 | -7/Factory | Identified exit to Storage 7748 | -7/Factory | Central database locked down 7780 | -7/Factory | Entered Storage 8282 | -7/Storage | X0-1V1 vaporized surrounding terrain (radius 23) 8345 | -7/Storage | Destroyed 11 combat bots 8385 | -7/Storage | X0-1V1 enhanced Transport squad support 8388 | -7/Storage | Build established: Tank 8411 | -7/Storage | Discovered new exit (range 5) 8532 | -7/Storage | X0-1V1 sent hostile X-62 Marksman (x3) 8538 | -7/Storage | Core integrity fell below 50% 8580 | -7/Storage | First assault squad dispatched 8837 | -7/Storage | Used back door to open Recycling access 8837 | -7/Storage | Discovered new exit (range 3) 8840 | -7/Storage | Entered Recycling 8959 | -7/Recycling | Build established: Skirmisher 9059 | -7/Recycling | Scanned before Scraplab entrance 9076 | -7/Recycling | Entered Scraplab 9086 | -7/Recycling | Discovered new exit (range 2) 9087 | -7/Recycling | Entered Scraptown 9087 | -7/Scraptown | System corruption cleaned by C-Scrubber 9223 | -7/Scraptown | Heard Great Nut preacher, LISTEN AND RECITE! 9342 | -7/Scraptown | Build established: Mutant 9373 | -7/Scraptown | Discovered new exit (range 11) 9445 | -7/Scraptown | Visited IN-MT5's Study 9490 | -7/Scraptown | Visited Red Mages 9567 | -7/Scraptown | Visited Symbiants 9580 | -7/Scraptown | Visited Fellowship of the Rings 9592 | -7/Scraptown | Visited Assassins FH 9637 | -7/Scraptown | Visited Cyclists 9645 | -7/Scraptown | Visited CPS Storage 9888 | -7/Scraptown | Turned away by UFD registrar 10611 | -7/Scraptown | Attacked by Scraptown defenders 10615 | -7/Scraptown | Stole IN-MT5's Pitchfork schematic 10633 | -7/Scraptown | X0-1V1 sent allied G-47 Trooper (x3) 10649 | -7/Scraptown | Core integrity fell below 20% 10652 | -7/Scraptown | Weapon slot count temporarily expanded by X0-1V1 (+3) 10655 | -7/Scraptown | X0-1V1 upgraded hostiles (x2) 10661 | -7/Scraptown | Destroyed by Y4-8YB(E) with KE Penetrator Last Messages --------------- 10655_ X0-1V1 tips the scales in a new dimension. Y4-8YB(E) reshaped into more powerful Elite. DJ-DKE(E) reshaped into more powerful Elite. 10656_ The unstable cave ceiling collapses. 10656_ 7U-ANT(p) crushed by falling debris. 10656_ 7U-ANT(p) system corrupted by crushing effect. 10656_ 7U-ANT(p) destroyed. 10656_ Scrap Suit crushed. 10656_ The unstable cave ceiling collapses. 10656_ Slug penetrates Wall. 10656_ Slug penetrates Earth. 10656_ Penetrated by Slug. 10656_ Slug penetrates Machine. 10656_ Penetrated by Slug. 10656_ Rocket Launcher+ destroyed. 10658_ The unstable cave ceiling collapses. 10658_ J4-R4L(r) destroyed. 10658_ Switching to secondary target: Y4-8YB(E). 10660_ Penetrated by Slug. 10661_ X0-1V1 chortles! Map ----- +----------------------------------------------------+ | "" " ###### ########### ########## | | " " #????# #?????????## ##????????# | | """""" #????" "?????#????# #########?# | | ###### #??? " " ???? ??# """"""""#?# | | ?????### #""" ""#??" "??### ### " ""#?# | | ???????# #""" "#? " " ?#"" """ "#?# | | ???????# #""" "#?"""" """"?#" """ " ""#?# | | ???????# #"" "#??### ###??#" " """"""""#?? | | ???????# #? "#""""" """""#" ##"""####?? | | ???????# #?"" ""#? " " ?#" "" " #?####?##?? | | ???????# #?## ##???" "??#" " #??????# "" | | ???????# #??? ?????? " " ???#"""""" #??????# || | | ???????# #???#???????" "????####### #??????# "" | | ??????## ##??????????# #??????????# #??????# || | | ??????# ############ ############ #??????# "" | | ??????# #??????# | | ??????# % #??????# "" | | ??????# ####################### = #??????# | | | ??????## ##???????????????????# %/ #??????? | | ? ###### ########?????######## E ########## | | " """""" """""""#?????#"""""""" %= | | """""" " "#?????# %"" % E | | """"" =]= "#????##" % ==l | | " " !!* "#????# != % [%% | | " " ! "#???### %=!!/= = | | """" " " ! = "#???# @%%! ! ########### | | """""""" " [ "#???# "" # #?????????? | | ######## " = = "#???# ; " # #?????????? | | ######## " "#???#### ; " # #?????????? | | """""""" """" ""#??????;######### #?????????? | | """""" " #### ###??????#????????# #?????????? | | " " #### ###???????????????# ########### | | "" " """" ""#???????????????# # # | | " " "#??????##???????# # # | | """"" " " "" "#??????"""""????# # # | | " " " "" "#?????"" """???# # # | | """ " " "#?????? "???# # # | | "" " " ""#??????? ??# # # | | """" " " """""#????????""" ??# # # | | "" " """""""#??????" "" ?# # ?? | | " " " """""""??????#" """ ?# #? ???? | | """" " #######???????" # #### ###### | | " " ######????????"" " " # | | """" " #"""X"???????? """ | | " "" " #" ?????????"" """ # | | #" "#????????"""" # | | "" " #" "#?????????####### | | " #" "#????????## | | """"""" #" "#????????# | | ####### #"" """########### | +----------------------------------------------------+ Best States ------------- Heat Dissipation 34 Energy Generation 14 Energy Capacity 1480 Matter Stores 532 Matter Capacity 800 Sight Range 21 Terrain Scan Density 10 Jamming Range 12 Armor Coverage 300 Evasion (%) 40 Core Analysis 6 Recoil Reduction 4 Offensive Hacking 10 Item Schematics ----------------- IN-MT5's Pitchfork "Insurrection" | -7/Scraptown | Archive Robot Schematics ------------------ None Fabricated ------------ Nothing Repaired ---------- Lgt. Treads | 31% | -9/Materials Lgt. Treads | 56% | -9/Materials Lgt. Cannon | 1% | -9/Materials Studied --------- Lgt. Treads | -9/Materials | Hacked Imp. Treads | -9/Materials | Hacked Imp. Ion Engine | -9/Materials | Hacked Com. Wheel | -9/Materials | Hacked Rocket Launcher | -9/Materials | Hacked Autogun | -9/Materials | Hacked Minigun | -8/Materials | Hacked Arm. Huge Wheel | -7/Factory | Hacked Alien Tech Used ----------------- None Achievements -------------- None Challenges ------------ None Game ------ Seed StorageOvertunedRedirector Manual? 0 Play Time 00:55:19 Cumulative 2270.0 hours Start 2026.07.18 @ 01:08:38 End 2026.07.18 @ 02:03:38 Sessions 1 Manual Loads 0 Difficulty Rogue Special Mode None Game No. 1419 Rogue 1415 Adventurer 4 Explorer 0 Win Type - Total 326 Types 244/14/27/11/4/1/6/10/5/4 Lore% 99 Gallery% 96 Achievement% 94 Wizard Run 0 Options --------- Layout 2 ASCII 0 Keyboard 1 Movement Vi Keybinds 0 Fullscreen 0 Font 24/Terminus Map View 59x48 Zoom Use 0% Tactical HUD 1 Map Filters NONE Filters NONE Steam 1 RUN: 92d288c4-f741-4adf-9200-22aaa5576d90